bitfinex/quotes_ETHUSD_20250801
["timestamp","ask_amount","ask_price","bid_price","bid_amount"]
[1754078387421,4.649,3522.8,3522.4,3.0]
[1754078387622,0.001,3523.0,3522.8,3.0]
[1754078387823,0.001,3523.0,3522.9,21.16596349]
[1754078387981,0.001,3523.0,3522.9,9.14251849]
[1754078388182,0.001,3523.0,3522.9,6.303948]
[1754078388391,0.001,3523.0,3522.9,10.68072]
[1754078388593,4.657,3523.0,3522.9,13.367988]
[1754078388819,4.657,3523.0,3522.9,3.0]
[1754078389118,5.1064,3523.0,3522.9,5.759597]
[1754078389316,5.1064,3523.0,3522.9,3.0]
[1754078389517,4.664,3523.0,3522.9,8.54416749]
[1754078389720,4.664,3523.0,3522.9,25.94912649]
[1754078390018,4.664,3523.0,3522.9,13.72885049]
[1754078390420,4.664,3523.0,3522.9,9.03148249]
[1754078390583,0.001,3523.0,3522.9,9.03148249]
[1754078390797,4.673,3523.0,3522.9,8.440832]
[1754078390987,4.673,3523.0,3522.9,6.801198]
[1754078391308,4.673,3523.0,3522.9,11.22140249]
[1754078391309,0.001,3523.0,3522.9,11.22140249]
[1754078391510,4.673,3523.0,3522.9,10.32078949]
[1754078391688,4.673,3523.0,3522.9,3.0]
[1754078391887,7.479,3523.0,3522.9,3.0]
[1754078392290,7.479,3523.0,3521.4,2.84326663]
[1754078392291,0.55,3522.9,3521.5,0.20912971]
[1754078392491,7.42281975,3522.3,3521.7,2.83953772]
[1754078392746,4.675,3522.2,3521.8,9.091854]
[1754078392892,6.931,3522.2,3521.8,9.091854]
[1754078393093,2.806,3522.1,3521.3,5.103822]
[1754078393330,4.677,3522.0,3520.9,30.0]
[1754078393528,7.42281975,3522.3,3521.8,2.839385]
[1754078393835,0.55,3521.8,3521.1,2.83995875]
[1754078393987,0.55,3521.6,3521.0,3.319803]
[1754078394190,0.55,3521.6,3520.2,29.169115]
[1754078394191,0.55,3521.1,3520.2,29.169115]
[1754078394430,4.682,3521.0,3520.5,8.25356]
[1754078394742,2.806,3520.9,3520.3,2.143845]
[1754078394907,2.806,3520.9,3520.1,11.56997085]
[1754078395234,2.84002249,3521.1,3520.5,25.439536]
[1754078395235,4.68,3520.8,3520.5,25.439536]
[1754078395396,4.68,3520.8,3520.1,15.090615]
[1754078395597,4.68,3520.8,3520.7,19.45550524]
[1754078395891,4.68,3520.8,3520.7,16.615161]
[1754078396313,4.68,3520.8,3520.7,22.033002]
[1754078396508,0.55,3520.7,3520.0,0.71537014]
[1754078396721,7.42281975,3520.5,3520.4,2.84058629]
[1754078396920,7.42281975,3520.5,3520.4,32.84058629]
[1754078397141,9.67881975,3520.5,3520.1,2.870462]
[1754078397435,4.679,3520.4,3520.3,20.74894798]
[1754078397741,4.68,3520.6,3520.5,29.0964266]
[1754078397917,1.8076,3521.4,3520.0,0.002]
[1754078397918,1.8076,3521.4,3521.0,12.187443]
[1754078398120,4.68,3521.3,3521.0,3.0]
[1754078398337,4.68,3521.3,3520.0,3.002]
[1754078398338,5.89028198,3521.3,3520.9,3.0]
[1754078398550,2.256,3521.2,3520.2,13.855895]
[1754078398712,7.42281975,3520.7,3520.1,25.621902]
[1754078398916,4.683,3520.6,3520.0,0.002]
[1754078399124,0.55,3520.5,3520.0,0.002]
[1754078399451,0.55,3520.5,3520.0,2.142]
[1754078399452,7.97281975,3520.1,3520.0,2.142]
[1754078399639,4.69,3520.1,3520.0,0.002]
[1754078399947,2.839814,3521.4,3520.0,15.769332]
[1754078400122,0.55,3520.7,3520.1,6.641138]
[1754078400312,7.42281975,3520.2,3520.1,3.807355]
[1754078400519,14.37081975,3520.2,3520.1,3.0]
[1754078400714,12.11481975,3520.2,3520.1,5.868216]
[1754078400939,0.55,3520.1,3520.0,0.002]
[1754078401245,4.692,3520.2,3520.1,19.12539838]
[1754078401447,4.692,3520.2,3520.0,0.002]
[1754078401448,12.11481975,3520.2,3520.0,0.002]
[1754078401612,12.11481975,3520.2,3520.1,9.851861]
[1754078401613,13.93931975,3520.2,3520.1,9.851861]
[1754078401817,13.93931975,3520.2,3520.1,5.684663]
[1754078402014,14.93771975,3520.2,3520.1,5.8379]
[1754078402242,0.55,3519.9,3519.6,0.002]
[1754078402421,7.97281975,3519.7,3518.5,0.20811528]
[1754078402616,9.24159437,3519.7,3519.2,8.63827219]
[1754078402812,2.2729,3520.2,3518.3,30.0]
[1754078403015,7.42281975,3520.0,3519.8,3.175016]
[1754078403256,2.806,3519.9,3519.2,2.84152607]
[1754078403453,7.42281975,3519.3,3519.2,11.20787189]
[1754078403622,7.42281975,3519.3,3518.5,2.84208827]
[1754078403623,12.11781975,3519.3,3519.1,2.84163556]
[1754078403814,12.11781975,3519.3,3519.2,5.888133]
[1754078404014,0.55,3519.2,3518.3,9.347993]
[1754078404241,7.42281975,3518.6,3518.5,13.79234822]
[1754078404439,4.696,3518.6,3518.5,2.84212022]
[1754078404644,4.696,3518.6,3518.5,19.37974322]
[1754078404952,4.696,3519.1,3519.0,2.84171639]
[1754078405169,4.696,3519.1,3519.0,31.19555139]
[1754078405313,4.696,3519.1,3519.0,26.14039439]
[1754078405717,10.71223158,3519.9,3519.4,3.0]
[1754078405956,5.6470746,3519.8,3519.7,3.503562]
[1754078406252,8.02322316,3519.8,3518.4,3.707511]
[1754078406456,0.55,3519.2,3518.8,10.466747]
[1754078406629,5.1504,3519.1,3518.9,2.21]
[1754078406833,6.958,3519.1,3519.0,7.731932]
[1754078407152,6.958,3519.1,3519.0,5.099732]
[1754078407321,4.702,3519.1,3519.0,7.94144839]
[1754078407522,4.702,3519.1,3519.0,7.512917]
[1754078407721,4.702,3519.1,3519.0,7.188982]
[1754078408631,4.702,3519.1,3519.0,8.132967]
[1754078408815,4.702,3519.1,3519.0,10.97468339]
[1754078409620,4.702,3519.1,3519.0,35.84171639]
[1754078410330,4.691,3519.6,3519.3,3.0]
[1754078410643,4.691,3519.6,3519.5,5.345557]
[1754078410840,6.947,3519.6,3519.5,5.52794]
[1754078411240,6.947,3519.6,3519.5,4.6833532]
[1754078411417,4.691,3519.6,3519.5,5.50831268]
[1754078411619,4.691,3519.6,3519.5,16.715208]
[1754078411824,4.691,3519.6,3519.5,19.55652068]
[1754078412025,4.691,3519.6,3519.5,19.49242068]
[1754078412243,4.691,3519.6,3519.5,19.29942068]
[1754078412443,4.691,3519.6,3519.5,15.23554668]
[1754078412623,4.691,3519.6,3519.5,13.365703]
[1754078412822,4.691,3519.6,3519.5,30.0]
[1754078413030,4.691,3519.6,3519.5,27.536482]
[1754078413230,4.691,3519.6,3519.5,23.150445]
[1754078413441,6.4486,3519.6,3519.5,8.689052]
[1754078413756,6.4486,3519.6,3518.9,9.51988]
[1754078413757,8.09203,3519.6,3518.9,9.51988]
[1754078413956,0.55,3519.5,3518.3,30.0]
[1754078414160,5.19893375,3519.5,3518.8,17.885218]
[1754078414373,5.19893375,3519.5,3519.1,3.0]
[1754078414544,3.39133375,3519.5,3519.3,3.0]
[1754078414749,4.47867488,3519.5,3519.4,8.06777]
[1754078414944,1.63734113,3519.5,3518.8,25.139393]
[1754078415161,2.84152878,3519.3,3518.5,2.84205299]
[1754078415363,4.683,3519.2,3518.8,27.54176713]
[1754078415658,4.683,3519.1,3519.0,9.07495]
[1754078416171,4.683,3519.1,3519.0,11.200327]
[1754078416386,4.683,3519.1,3519.0,9.082255]
[1754078417119,4.683,3519.1,3519.0,3.0]
[1754078417254,6.6139,3519.1,3519.0,3.0]
[1754078417457,4.683,3519.1,3519.0,18.837165]
[1754078417663,4.683,3519.1,3519.0,16.090978]
[1754078417857,4.683,3519.1,3519.0,14.090978]
[1754078418431,4.683,3519.1,3519.0,12.484772]
[1754078418637,4.683,3519.1,3519.0,7.616881]
[1754078418839,9.88453564,3519.1,3519.0,6.035]
[1754078419038,11.1592319,3519.1,3519.0,6.035]
[1754078419265,9.88453564,3519.1,3519.0,6.035]
[1754078419766,2.84174105,3519.0,3518.6,3.0]
[1754078420069,5.75169715,3518.9,3518.8,7.632221]
[1754078420269,2.9099,3518.9,3518.6,3.0]
[1754078420431,6.5979,3518.8,3518.7,10.677608]
[1754078420637,4.667,3518.8,3518.7,17.691644]
[1754078420945,4.667,3518.8,3518.7,8.886459]
[1754078421132,4.667,3518.8,3518.7,8.836459]
[1754078421573,4.667,3518.8,3518.7,12.330015]
[1754078421735,4.667,3518.8,3518.7,15.17197367]
[1754078422350,4.667,3518.8,3518.7,12.330015]
[1754078422673,6.5979,3518.8,3518.7,9.349257]
[1754078423046,6.5979,3518.8,3518.7,2.95]
[1754078423246,7.0269,3518.8,3518.7,2.95]
[1754078423462,7.0269,3518.8,3518.2,0.71906211]
[1754078423463,0.55,3518.7,3518.2,0.71906211]
[1754078423778,0.55,3518.2,3517.6,16.713133]
[1754078423979,0.55,3518.0,3517.7,9.983054]
[1754078424172,0.55,3518.0,3517.1,30.0]
[1754078424475,1.9309,3517.9,3517.6,14.506806]
[1754078424640,1.9309,3517.9,3516.8,3.28875561]
[1754078424641,4.679,3517.8,3517.7,13.148031]
[1754078424845,4.679,3517.8,3517.7,15.99079758]
[1754078425077,4.679,3517.8,3517.7,16.08079758]
[1754078425375,1.9309,3518.3,3517.8,2.84268576]
[1754078425574,6.825,3518.6,3518.5,24.95502522]
[1754078425749,1.73001357,3519.5,3519.3,9.902954]
[1754078425956,2.3599,3519.4,3518.9,2.84172143]
[1754078426281,0.55,3518.9,3517.3,2.84303119]
[1754078426575,7.42281975,3519.0,3517.6,0.002]
[1754078426576,0.55,3518.5,3517.6,0.002]
[1754078426760,0.55,3518.1,3517.9,10.043358]
[1754078426958,1.9309,3518.0,3517.9,13.377935]
[1754078427160,6.6309,3518.0,3517.9,13.377935]
[1754078427362,4.7,3518.0,3517.9,11.907678]
[1754078427562,4.7,3518.0,3517.9,9.020678]
[1754078427958,4.7,3518.0,3517.9,9.477751]
[1754078428340,4.7,3518.0,3517.9,3.0]
[1754078428586,4.7,3518.0,3517.9,8.546381]
[1754078428941,1.9309,3518.4,3518.0,3.0]
[1754078429138,4.692,3518.3,3518.2,6.349668]
[1754078429369,6.6229,3518.3,3518.2,6.349668]
[1754078429748,4.692,3518.3,3518.2,6.349668]
[1754078429944,4.692,3518.3,3518.2,16.520601]
[1754078430281,4.692,3518.3,3518.2,13.695601]
[1754078430643,7.53428178,3518.3,3518.2,13.695601]
[1754078430842,7.53428178,3518.3,3518.2,8.898267]
[1754078431239,4.692,3518.3,3518.2,8.898267]
[1754078431441,2.84246751,3518.1,3517.6,0.002]
[1754078431646,2.84260496,3517.9,3517.8,3.0]
[1754078431978,2.84276658,3517.7,3517.6,0.002]
[1754078432355,4.77366658,3517.7,3517.6,0.002]
[1754078432558,6.84639006,3517.7,3517.6,0.002]
[1754078432744,14.24828334,3517.7,3517.6,0.002]
[1754078432946,6.82546359,3517.7,3517.6,0.002]
[1754078433172,11.51046359,3517.7,3517.6,0.002]
[1754078433485,11.50946359,3517.7,3517.6,0.002]
[1754078433842,6.6149,3517.7,3517.6,12.309877]
[1754078434060,4.684,3517.7,3517.6,10.04394]
[1754078434471,2.84246368,3518.1,3517.9,3.0]
[1754078434748,0.55,3518.4,3518.1,12.46212]
[1754078434948,4.683,3518.3,3518.2,11.726704]
[1754078435188,6.6139,3518.3,3518.2,8.424704]
[1754078435382,4.683,3518.3,3518.2,8.424704]
[1754078436002,4.8197,3518.3,3518.2,22.996057]
[1754078436210,4.8366,3518.3,3518.2,22.996057]
[1754078436771,4.8366,3518.3,3518.2,14.273985]
[1754078436982,4.8366,3518.3,3518.2,24.841761]
[1754078437186,4.8366,3518.3,3518.2,22.593227]
[1754078437503,4.8366,3518.3,3518.2,13.931297]
[1754078437994,4.8366,3518.3,3518.2,23.478551]
[1754078438602,4.8366,3518.3,3518.2,23.428551]
[1754078438900,5.5197,3518.3,3518.2,23.428551]
[1754078439104,19.24667153,3518.3,3518.2,2.95]
[1754078439305,3.3924101,3518.2,3517.7,2.800312]
[1754078439515,2.3599,3518.1,3517.7,2.800312]
[1754078439808,4.672,3518.0,3517.7,2.800312]
[1754078439976,4.672,3517.9,3517.7,30.0]
[1754078440318,4.672,3517.9,3517.8,3.28598576]
[1754078440468,0.8367,3518.3,3518.2,2.84236257]
[1754078440674,0.1367,3518.3,3518.2,36.28566257]
[1754078440888,4.671,3519.0,3518.9,2.84179715]
[1754078441084,0.001,3519.5,3519.1,35.84163564]
[1754078441085,4.672,3519.2,3519.1,35.84163564]
[1754078441285,4.672,3519.2,3519.1,23.09738664]
[1754078441491,0.001,3519.5,3519.4,2.84139341]
[1754078441694,0.001,3519.5,3519.4,29.24638241]
[1754078441879,0.001,3519.5,3519.4,29.58818241]
[1754078442132,0.001,3519.5,3519.4,36.18319341]
[1754078442279,0.001,3519.5,3519.4,16.15204741]
[1754078442483,0.0027,3519.5,3519.4,16.15204741]
[1754078443210,0.0027,3519.5,3519.4,35.84139341]
[1754078443718,1.9336,3519.5,3519.4,10.525774]
[1754078443879,0.7027,3519.5,3519.4,13.36716741]
[1754078444079,0.7027,3519.5,3519.4,35.84139341]
[1754078444916,0.7027,3519.5,3519.4,23.562155]
[1754078445223,0.7027,3519.5,3519.4,28.26172141]
[1754078445536,0.7027,3519.5,3519.4,3.0]
[1754078445738,2.5736,3519.5,3519.4,3.0]
[1754078445886,3.0388,3519.5,3519.4,12.149979]
[1754078446082,6.67109268,3519.5,3517.6,0.002]
[1754078446320,7.42281975,3519.1,3517.8,2.84268576]
[1754078446517,6.55482647,3519.0,3518.4,3.055914]
[1754078446736,6.9991,3519.0,3518.6,2.324146]
[1754078446883,1.72634824,3518.9,3518.6,3.0]
[1754078447225,1.72634824,3518.9,3518.2,2.84228937]
[1754078447226,2.5736,3519.5,3518.8,3.0]
[1754078447383,6.9991,3519.4,3518.9,2.848455]
[1754078447727,2.3361,3519.3,3518.9,2.848455]
[1754078447899,2.3361,3519.2,3518.9,2.848455]
[1754078448220,1.8709,3519.1,3518.9,11.389188]
[1754078448519,0.7027,3519.5,3519.3,6.295529]
[1754078448520,3.0388,3519.5,3519.3,6.295529]
[1754078448721,3.0388,3519.5,3519.4,8.229067]
[1754078448884,2.5736,3519.5,3519.4,5.762067]
[1754078449084,2.5736,3519.5,3519.4,16.894086]
[1754078449418,7.2336,3519.5,3519.4,11.593325]
[1754078449593,7.2336,3519.5,3519.4,6.368428]
[1754078449793,7.6988,3519.5,3519.4,6.368428]
[1754078450388,7.6988,3519.5,3519.3,3.0]
[1754078450589,5.3627,3519.5,3519.4,14.31587341]
[1754078450785,7.15157,3519.5,3519.4,7.674322]
[1754078451000,2.84163564,3519.1,3518.4,2.84214863]
[1754078451206,6.9921,3519.0,3518.4,2.84214863]
[1754078451522,6.9921,3519.0,3518.5,3.0]
[1754078451685,6.9921,3519.0,3518.4,3.0]
[1754078451686,0.4652,3518.9,3518.4,3.0]
[1754078451882,1.8709,3518.8,3518.7,10.914392]
[1754078452087,4.656,3519.0,3518.8,3.0]
[1754078452325,7.49773128,3519.0,3518.9,8.468571]
[1754078452528,7.51463128,3519.0,3518.9,8.468571]
[1754078452821,9.38551639,3519.0,3518.9,3.0]
[1754078452985,9.85071639,3519.0,3518.9,5.615571]
[1754078453186,4.6729,3519.0,3518.9,5.615571]
[1754078453529,6.5438,3519.0,3518.9,6.540556]
[1754078453690,6.5438,3519.0,3518.9,9.38235315]
[1754078453893,4.6729,3519.0,3518.9,9.38235315]
[1754078454112,4.6729,3519.0,3518.9,6.540556]
[1754078454386,4.6729,3519.0,3518.9,19.665532]
[1754078454700,4.6729,3519.0,3518.9,22.50732915]
[1754078454898,4.6729,3519.0,3518.9,19.665532]
[1754078455236,7.009,3519.0,3518.9,3.0]
[1754078455404,7.009,3519.0,3518.9,10.86154]
[1754078455605,6.5438,3519.0,3518.9,13.70333715]
[1754078455783,4.6729,3519.0,3518.9,21.15409415]
[1754078455983,4.6729,3519.0,3518.9,17.51338]
[1754078456189,4.6729,3519.0,3518.9,7.738967]
[1754078456715,4.6729,3519.0,3518.9,3.0]
[1754078457032,4.6729,3519.0,3518.9,14.886309]
[1754078457404,7.009,3519.0,3518.9,3.0]
[1754078457618,7.7099,3519.0,3518.9,5.821283]
[1754078457927,7.7099,3519.0,3518.9,3.0]
[1754078458126,7.009,3519.0,3518.9,8.315052]
[1754078458421,7.009,3519.0,3518.9,3.0]
[1754078458729,7.009,3519.0,3518.9,14.351773]
[1754078458894,7.009,3519.0,3518.9,5.237492]
[1754078459093,9.85071639,3519.0,3518.9,3.0]
[1754078459290,11.11993833,3519.0,3518.9,3.0]
[1754078460328,8.82822194,3519.0,3518.0,2.84246669]
[1754078460502,2.8419266,3518.8,3518.2,5.926504]
[1754078460834,6.5059,3518.7,3518.3,3.0]
[1754078460990,4.633,3518.6,3518.5,28.49318993]
[1754078461326,4.633,3518.6,3518.5,2.218934]
[1754078461510,6.9691,3518.6,3518.5,7.645]
[1754078461710,6.5039,3518.6,3518.5,8.397112]
[1754078461942,6.5039,3518.6,3518.5,8.079112]
[1754078462303,0.0169,3519.0,3518.6,3.0]
[1754078462503,4.631,3518.9,3518.7,20.37961538]
[1754078462722,4.631,3518.9,3518.7,17.432511]
[1754078462924,4.631,3518.9,3518.8,12.748605]
[1754078463295,4.631,3518.9,3518.8,15.59048291]
[1754078463495,0.0169,3519.0,3518.9,2.84179715]
[1754078463701,4.6479,3519.0,3518.9,35.84179715]
[1754078464592,0.2,3519.1,3519.0,5.84171639]
[1754078464923,4.831,3519.1,3519.0,35.84171639]
[1754078465233,4.831,3519.1,3519.0,29.17372239]
[1754078465945,4.831,3519.1,3519.0,33.53274039]
[1754078466306,0.2,3519.1,3519.0,33.53274039]
[1754078466693,4.63,3519.4,3519.3,5.84147415]
[1754078467029,4.63,3519.4,3519.3,35.84147415]
[1754078467237,4.63,3519.4,3519.3,18.76377715]
[1754078468043,4.63,3519.4,3519.3,35.84147415]
[1754078468242,4.63,3519.4,3519.3,18.90829015]
[1754078468420,4.63,3519.4,3519.3,17.89350815]
[1754078468824,1e-08,3519.5,3519.4,33.94572041]
[1754078469009,1e-08,3519.5,3519.4,36.18329341]
[1754078470152,1e-08,3519.5,3519.4,35.84139341]
[1754078470351,3.03610001,3519.5,3519.2,2.84154197]
[1754078470550,0.70000001,3519.5,3519.4,2.215809]
[1754078470763,0.70000001,3519.5,3519.4,5.215809]
[1754078471120,3.03610001,3519.5,3519.4,14.54961]
[1754078471320,3.14882546,3519.5,3519.4,11.841045]
[1754078471553,4.46578669,3519.5,3518.2,4.632]
[1754078471768,1.16520001,3519.5,3519.4,3.0]
[1754078471922,1.27792486,3519.5,3519.2,3.0]
[1754078472118,0.4652,3519.4,3519.3,7.344907]
[1754078472340,2.44891385,3519.4,3519.3,7.344907]
[1754078472646,0.70000001,3519.5,3519.4,5.84139341]
[1754078472815,1.07843993,3519.5,3519.4,24.89334841]
[1754078473019,1.07843993,3519.5,3519.4,16.142274]
[1754078473020,2.94933993,3519.5,3519.4,16.142274]
[1754078473245,2.94933993,3519.5,3518.3,0.002]
[1754078473246,4.17267392,3519.5,3518.4,19.632726]
[1754078473467,2.71453992,3519.4,3519.1,8.671618]
[1754078473657,5.00855786,3519.3,3518.8,3.0]
[1754078473862,4.63,3519.3,3518.3,0.002]
[1754078474021,4.63,3519.3,3519.1,3.0]
[1754078474533,4.63,3519.3,3518.3,2.8442414]
[1754078474534,2.3361,3519.2,3518.5,3.0]
[1754078474841,2.3361,3519.2,3518.9,3.0]
[1754078475047,4.63,3519.3,3518.9,3.0]
[1754078475257,2.3361,3519.1,3518.5,3.0]
[1754078475557,4.63,3519.0,3518.9,3.0]
[1754078475776,4.63,3519.0,3518.8,5.84186924]
[1754078475922,1.8454,3518.9,3518.8,9.34029924]
[1754078476430,1.8454,3518.9,3518.8,5.665266]
[1754078476642,4.63,3519.0,3518.9,2.84179715]
[1754078476817,6.4754,3519.0,3518.9,3.0]
[1754078477017,7.56074,3519.0,3518.3,0.002]
[1754078477237,5.12499791,3518.9,3518.3,2.84423103]
[1754078477434,2.2832,3518.9,3518.3,0.002]
[1754078477684,12.6149169,3518.7,3518.3,0.002]
[1754078477863,7.47205131,3518.6,3518.3,0.002]
[1754078478048,4.63,3518.6,3518.3,0.002]
[1754078478267,2.2832,3518.5,3518.3,3.002]
[1754078478559,2.2832,3518.5,3518.3,0.002]
[1754078478889,0.4378,3518.4,3518.3,2.073821]
[1754078479436,2.2832,3518.4,3518.3,2.073821]
[1754078479644,6.366721,3518.4,3518.3,0.002]
[1754078480060,2.97452,3518.4,3518.3,7.290194]
[1754078480242,2.2832,3518.4,3518.3,7.290194]
[1754078480567,1.8454,3518.4,3518.3,7.290194]
[1754078480740,2.2832,3518.4,3518.3,8.967816]
[1754078480940,2.2832,3518.4,3518.3,5.600816]
[1754078482869,5.125401,3518.4,3518.3,3.002]
[1754078483077,3.25871591,3518.4,3518.3,6.422316]
[1754078483386,3.25871591,3518.4,3518.3,9.222576]
[1754078483687,3.25871591,3518.4,3518.3,6.934192]
[1754078483889,2.84252416,3518.0,3517.9,0.002]
[1754078484095,0.55,3517.9,3517.0,3.54945972]
[1754078484238,3.39266357,3517.9,3517.4,3.010242]
[1754078484447,1.8454,3517.8,3517.7,3.0]
[1754078484767,6.4754,3517.8,3517.7,7.846009]
[1754078484975,6.4754,3517.8,3517.7,7.317406]
[1754078485184,6.4754,3517.8,3517.6,2.8428422]
[1754078485470,6.4754,3517.8,3517.7,22.79511158]
[1754078485471,4.63,3517.8,3517.7,22.79511158]
[1754078486685,4.63,3517.8,3517.7,25.85707058]
[1754078487290,4.3,3518.4,3518.0,19.21894716]
[1754078487501,1.8454,3518.4,3518.3,15.01225]
[1754078487800,6.4754,3518.4,3518.3,17.85453178]
[1754078487997,6.4754,3518.4,3518.3,20.481303]
[1754078488362,1.8454,3518.9,3518.7,7.437872]
[1754078488569,2.84234976,3518.3,3517.3,2.914149]
[1754078488816,9.75564326,3518.2,3517.8,3.0]
[1754078488983,2.2832,3518.1,3517.2,3.0]
[1754078489182,2.84279356,3517.7,3517.1,10.112912]
[1754078489386,6.9132,3517.6,3517.1,6.186442]
[1754078489588,5.0678,3517.6,3517.4,3.0]
[1754078489897,2.2832,3517.5,3517.3,4.796939]
[1754078490202,1.66861581,3518.0,3517.3,3.0]
[1754078490203,4.63,3517.4,3517.3,3.0]
[1754078490385,4.63,3517.4,3517.3,6.256816]
[1754078490563,6.4754,3517.4,3517.3,11.81320587]
[1754078491012,6.4754,3517.4,3517.3,3.0]
[1754078491304,6.4754,3517.4,3517.3,11.83820587]
[1754078491509,6.4754,3517.4,3517.3,5.84308987]
[1754078491810,6.4754,3517.4,3517.3,3.0]
[1754078492016,6.9132,3517.4,3517.3,3.0]
[1754078492172,7.60452,3517.4,3517.3,3.0]
[1754078492372,7.62312,3517.4,3517.3,3.0]
[1754078492569,6.9318,3517.4,3517.3,3.0]
[1754078494708,9.77480904,3517.4,3517.3,3.0]
[1754078494906,2.84308987,3517.3,3516.6,0.002]
[1754078495207,3.41161877,3517.4,3517.3,0.002]
[1754078495381,11.4766,3517.4,3517.3,0.002]
[1754078495585,17.0444418,3517.4,3517.3,0.002]
[1754078495783,16.48463276,3517.4,3517.3,0.002]
[1754078496181,19.3276418,3517.4,3517.3,0.002]
[1754078496920,16.48463276,3517.4,3517.3,0.002]
[1754078497283,8.692,3517.4,3517.3,0.002]
[1754078497477,11.4766,3517.4,3517.3,0.002]
[1754078497715,6.8466,3517.4,3517.3,9.99136587]
[1754078498014,4.6486,3517.4,3517.3,21.81193987]
[1754078498691,1e-08,3517.4,3517.3,21.81193987]
[1754078498881,1e-08,3517.4,3517.3,34.28120387]
[1754078499076,4.631,3517.6,3517.5,35.84292821]
[1754078499301,6.828,3518.7,3518.4,5.165873]
[1754078499531,6.828,3518.7,3517.5,3.3459]
[1754078499532,4.631,3518.6,3518.5,7.410486]
[1754078499842,6.9142,3518.6,3518.2,3.530069]
[1754078500115,6.9142,3518.6,3518.4,3.0]
[1754078500291,1.8454,3518.5,3518.4,3.0]
[1754078500612,6.828,3518.7,3518.6,13.18109144]
[1754078500817,11.458,3518.7,3518.6,13.18109144]
[1754078501520,11.458,3518.7,3518.6,16.51288744]
[1754078501694,4.63,3518.7,3518.6,15.75288744]
[1754078502480,1.72429294,3519.4,3518.9,24.04032315]
[1754078502677,1.72429294,3519.4,3519.3,18.76344015]
[1754078502878,4.63,3519.4,3519.3,18.76344015]
[1754078503113,4.63,3519.4,3519.3,14.62399415]
[1754078503477,4.63,3519.4,3519.3,29.33143615]
[1754078503689,4.63,3519.4,3519.3,28.80283315]
[1754078503938,4.63,3519.4,3519.3,27.20492315]
[1754078504235,1e-08,3519.5,3519.4,30.50693441]
[1754078504393,1e-08,3519.5,3519.4,22.98042741]
[1754078504593,1e-08,3519.5,3519.4,36.73729341]
[1754078504843,1e-08,3519.9,3519.8,35.84107051]
[1754078505133,1e-08,3519.9,3519.8,36.39107051]
[1754078505426,9.77295807,3521.9,3519.8,36.39107051]
[1754078505427,1.8454,3522.2,3522.1,5.83921524]
[1754078505630,1.8454,3522.2,3522.1,20.75876824]
[1754078505631,0.1126282,3522.2,3522.1,20.75876824]
[1754078505925,0.001,3522.4,3522.1,20.75876824]
[1754078505926,16.91759712,3522.3,3522.2,30.09576763]
[1754078506128,0.001,3523.0,3522.7,30.0]
[1754078506330,0.001,3523.4,3523.3,35.83824823]
[1754078506331,4.63,3523.4,3523.3,35.83824823]
[1754078506532,0.11343515,3523.4,3523.3,35.83824823]
[1754078506733,0.001,3523.4,3523.3,36.04892693]
[1754078507049,0.11243891,3524.1,3523.5,32.83808712]
[1754078507193,0.11243891,3524.1,3523.5,16.41431512]
[1754078507395,0.11243891,3524.1,3523.9,2.83776497]
[1754078507629,2.71402111,3524.3,3523.9,35.83776497]
[1754078507793,0.11218213,3524.2,3523.9,35.83776497]
[1754078508121,7.34502111,3524.3,3523.9,35.83776497]
[1754078508302,2.71402111,3524.3,3523.9,35.83776497]
[1754078508515,4.627,3524.6,3523.9,36.17966497]
[1754078508715,0.11195301,3524.5,3523.9,36.17966497]
[1754078508892,4.627,3524.5,3523.9,36.17966497]
[1754078509098,0.11195301,3524.4,3523.9,36.17966497]
[1754078509608,4.627,3524.5,3523.9,28.95635297]
[1754078509939,6.8767,3524.0,3522.6,1.197666]
[1754078510238,2.8379961,3523.7,3522.3,30.0]
[1754078510527,1.8016,3523.8,3523.7,3.0]
[1754078510729,6.54228871,3523.8,3523.7,28.799166]
[1754078511027,6.54228871,3523.8,3523.7,25.412722]
[1754078511256,4.629,3523.8,3523.7,25.412722]
[1754078511430,6.98929913,3523.8,3523.7,3.0]
[1754078511757,6.98929913,3523.8,3522.3,0.3419]
[1754078511758,7.68832904,3523.8,3522.9,19.802008]
[1754078512056,2.83810064,3523.5,3522.9,5.525685]
[1754078512367,4.73854175,3523.4,3522.8,2.83865107]
[1754078512517,1.8016,3523.3,3522.3,30.0]
[1754078512855,2.2487,3523.3,3522.8,3.0]
[1754078513021,5.32572418,3523.4,3522.8,2.83858656]
[1754078513222,2.2487,3523.2,3523.0,6.401863]
[1754078513421,2.2487,3523.2,3522.9,13.279664]
[1754078513422,1.8016,3523.1,3522.9,13.279664]
[1754078513618,4.626,3523.0,3522.4,3.0]
[1754078513942,4.626,3522.9,3522.3,0.21170574]
[1754078514143,6.4276,3522.9,3522.4,2.698948]
[1754078514345,1.8016,3522.8,3522.5,3.0]
[1754078514639,1.8016,3522.8,3520.5,30.0]
[1754078514640,0.02092647,3522.7,3520.5,30.0]
[1754078514840,2.83923675,3522.1,3520.5,30.0]
[1754078515043,6.89362647,3522.0,3521.2,16.774324]
[1754078515248,6.8727,3522.0,3521.4,30.0]
[1754078515445,6.8727,3522.0,3521.7,3.0]